fUSD/lending_fUSD_20250512
["ID","MTS","AMOUNT","RATE_DAILY","PERIOD"]
[360826500,1747048238649,-178.72,0.00013829,2]
[360826502,1747048238658,-586.0,0.0001393,2]
[360826504,1747048238670,-700.0,0.00013972,2]
[360826506,1747048238679,-2000.0,0.00013972,2]
[360826508,1747048238689,-188.0573,0.00014,2]
[360826510,1747048238698,-75410.98451042,0.00014132,2]
[360826513,1747048238707,-619.9348787,0.00014135,2]
[360826516,1747048238716,-619.93487862,0.0001422,2]
[360826518,1747048238725,-261.88640412,0.00014235,2]
[360826520,1747048238735,-400.0,0.00014235,2]
[360826522,1747048238744,-474.27165543,0.00014235,2]
[360826524,1747048238753,-400.0,0.00014235,2]
[360826525,1747048238762,-464.98,0.00014235,2]
[360826527,1747048238772,-400.0,0.00014235,2]
[360826529,1747048238781,-400.0,0.00014235,2]
[360826531,1747048238790,-400.0,0.00014235,2]
[360826533,1747048238799,-400.0,0.00014235,2]
[360826535,1747048238809,-400.0,0.00014235,2]
[360826536,1747048238818,-400.0,0.00014235,2]
[360826537,1747048238827,-400.0,0.00014235,2]
[360826538,1747048238837,-400.0,0.00014235,2]
[360826539,1747048238846,-400.0,0.00014235,2]
[360826540,1747048238855,-400.0,0.00014235,2]
[360826541,1747048238865,-400.0,0.00014235,2]
[360826542,1747048238874,-400.0,0.00014235,2]
[360826543,1747048238883,-400.0,0.00014235,2]
[360826544,1747048238893,-400.0,0.00014235,2]
[360826545,1747048238902,-400.0,0.00014235,2]
[360826546,1747048238913,-522.05,0.00014235,2]
[360826547,1747048238923,-400.0,0.00014235,2]
[360826548,1747048238932,-400.0,0.00014235,2]
[360826549,1747048238942,-400.0,0.00014235,2]
[360826550,1747048238956,-493.27117187,0.00014235,2]
[360826551,1747048238966,-451.30547546,0.00014235,2]
[360826552,1747048238975,-400.0,0.00014235,2]
[360826553,1747048238984,-400.0,0.00014235,2]
[360826554,1747048238995,-400.0,0.00014235,2]
[360826555,1747048239005,-400.0,0.00014235,2]
[360826556,1747048239014,-400.0,0.00014235,2]
[360826557,1747048239026,-400.0,0.00014235,2]
[360826558,1747048239036,-400.0,0.00014235,2]
[360826559,1747048239045,-400.0,0.00014235,2]
[360826560,1747048239055,-400.0,0.00014235,2]
[360826561,1747048239064,-400.0,0.00014235,2]
[360826562,1747048239073,-490.0,0.00014235,2]
[360826563,1747048239083,-400.0,0.00014235,2]
[360826564,1747048239092,-400.0,0.00014235,2]
[360826565,1747048239101,-400.0,0.00014235,2]
[360826566,1747048239111,-400.0,0.00014235,2]
[360826567,1747048239121,-400.0,0.00014235,2]
[360826568,1747048239131,-400.0,0.00014235,2]
[360826569,1747048239140,-435.17855083,0.00014235,2]
[360826570,1747048239149,-400.0,0.00014235,2]
[360826571,1747048239159,-400.0,0.00014235,2]
[360826572,1747048239169,-431.68,0.00014235,2]
[360826573,1747048239179,-627.36041036,0.00014235,2]
[360826574,1747048239189,-400.0,0.00014235,2]
[360826575,1747048239198,-272.19,0.00014235,2]
[360826576,1747048239207,-485.81,0.00014235,2]
[360826577,1747048239219,-318.2806997,0.00014235,2]
[360826578,1747048239228,-226.09851481,0.00014235,2]
[360826579,1747048239239,-400.0,0.00014235,2]
[360826580,1747048239249,-4699.3,0.00014235,2]
[360826581,1747048239259,-400.0,0.00014235,2]
[360826582,1747048239269,-400.0,0.00014235,2]
[360826583,1747048239278,-400.0,0.00014235,2]
[360826584,1747048239288,-400.0,0.00014235,2]
[360826585,1747048239297,-375.38,0.00014235,2]
[360826586,1747048239307,-4791.66,0.00014235,2]
[360826587,1747048239317,-400.0,0.00014235,2]
[360826588,1747048239327,-348.68,0.00014235,2]
[360826589,1747048239336,-404.01962278,0.00014235,2]
[360826590,1747048239345,-1488.85,0.00014235,2]
[360826591,1747048239355,-400.0,0.00014235,2]
[360826592,1747048239364,-211.04871462,0.00014235,2]
[360826593,1747048239374,-457.92,0.00014235,2]
[360826594,1747048239383,-2607.17,0.00014235,2]
[360826595,1747048239393,-400.0,0.00014235,2]
[360826596,1747048239402,-505.71,0.00014235,2]
[360826597,1747048239413,-400.0,0.00014235,2]
[360826598,1747048239422,-400.0,0.00014235,2]
[360826599,1747048239432,-452.81,0.00014235,2]
[360826600,1747048239443,-400.0,0.00014235,2]
[360826601,1747048239452,-361.7212614,0.00014235,2]
[360826602,1747048239462,-19758.95,0.00014235,2]
[360826603,1747048239471,-400.0,0.00014235,2]
[360826604,1747048239481,-400.0,0.00014235,2]
[360826605,1747048239491,-400.0,0.00014235,2]
[360826606,1747048239501,-545.88,0.00014235,2]
[360826607,1747048239511,-400.0,0.00014235,2]
[360826608,1747048239520,-400.0,0.00014235,2]
[360826609,1747048239529,-516.96,0.00014235,2]
[360826610,1747048239538,-400.0,0.00014235,2]
[360826611,1747048239549,-400.0,0.00014235,2]
[360826612,1747048239559,-400.0,0.00014235,2]
[360826613,1747048239568,-8327.07,0.00014235,2]
[360826614,1747048239578,-400.0,0.00014235,2]
[360826615,1747048239588,-500.0,0.00014235,2]
[360826616,1747048239599,-494.70867889,0.00014235,2]
[360826617,1747048239608,-400.0,0.00014235,2]
[360826618,1747048239618,-404.27,0.00014235,2]
[360826619,1747048239627,-400.0,0.00014235,2]
[360826620,1747048239637,-400.0,0.00014235,2]
[360826621,1747048239646,-400.0,0.00014235,2]
[360826622,1747048239655,-5094.74,0.00014235,2]
[360826623,1747048239667,-400.0,0.00014235,2]
[360826624,1747048239677,-400.0,0.00014235,2]
[360826625,1747048239686,-2661.9,0.00014235,2]
[360826626,1747048239696,-409.31365597,0.00014235,2]
[360826627,1747048239705,-400.0,0.00014235,2]
[360826628,1747048239715,-400.0,0.00014235,2]
[360826629,1747048239725,-400.0,0.00014235,2]
[360826630,1747048239734,-400.0,0.00014235,2]
[360826631,1747048239744,-400.0,0.00014235,2]
[360826632,1747048239753,-400.0,0.00014235,2]
[360826633,1747048239763,-400.0,0.00014235,2]
[360826634,1747048239773,-400.93504187,0.00014235,2]
[360826635,1747048239782,-400.0,0.00014235,2]
[360826636,1747048239792,-1175.99,0.00014235,2]
[360826637,1747048239801,-400.0,0.00014235,2]
[360826638,1747048239811,-400.0,0.00014235,2]
[360826639,1747048239820,-400.0,0.00014235,2]
[360826640,1747048239829,-400.0,0.00014235,2]
[360826641,1747048239839,-400.0,0.00014235,2]
[360826642,1747048239848,-400.0,0.00014235,2]
[360826643,1747048239858,-400.0,0.00014235,2]
[360826644,1747048239868,-400.00102525,0.00014235,2]
[360826645,1747048239878,-400.0,0.00014235,2]
[360826646,1747048239888,-400.0,0.00014235,2]
[360826647,1747048239899,-3164.96,0.00014235,2]
[360826648,1747048239909,-400.0,0.00014235,2]
[360826649,1747048239920,-470.38,0.00014235,2]
[360826650,1747048239930,-457.58,0.00014235,2]
[360826651,1747048239939,-400.0,0.00014235,2]
[360826652,1747048239950,-400.0,0.00014235,2]
[360826653,1747048239961,-400.0,0.00014235,2]
[360826654,1747048239972,-400.0,0.00014235,2]
[360826656,1747048239981,-442.12000509,0.00014235,2]
[360826657,1747048239990,-400.0,0.00014235,2]
[360826658,1747048239999,-449.48643455,0.00014235,2]
[360826659,1747048240010,-400.0,0.00014235,2]
[360826660,1747048240020,-465.968501,0.00014235,2]
[360826661,1747048240029,-485.14,0.00014235,2]
[360826662,1747048240039,-3065.64,0.00014235,2]
[360826663,1747048240048,-400.0,0.00014235,2]
[360826664,1747048240057,-38767.83,0.00014235,2]
[360826665,1747048240067,-400.0,0.00014235,2]
[360826666,1747048240076,-400.0,0.00014235,2]
[360826668,1747048240085,-400.0,0.00014235,2]
[360826669,1747048240094,-400.0,0.00014235,2]
[360826670,1747048240104,-400.0,0.00014235,2]
[360826671,1747048240113,-400.0,0.00014235,2]
[360826672,1747048240123,-400.0,0.00014235,2]
[360826673,1747048240134,-656.14,0.00014235,2]
[360826674,1747048240143,-400.0,0.00014235,2]
[360826675,1747048240153,-400.0,0.00014235,2]
[360826676,1747048240164,-400.0,0.00014235,2]
[360826677,1747048240174,-400.0,0.00014235,2]
[360826679,1747048240183,-400.0,0.00014235,2]
[360826681,1747048240193,-479.31,0.00014235,2]
[360826682,1747048240202,-1156.08,0.00014235,2]
[360826683,1747048240211,-400.0,0.00014235,2]
[360826684,1747048240221,-400.0,0.00014235,2]
[360826685,1747048240230,-2043.24,0.00014235,2]
[360826686,1747048240239,-670.3,0.00014235,2]
[360826687,1747048240248,-464.86,0.00014235,2]
[360826688,1747048240257,-961.62,0.00014235,2]
[360826689,1747048240266,-915.04,0.00014235,2]
[360826690,1747048240275,-536.24,0.00014235,2]
[360826691,1747048240285,-400.0,0.00014235,2]
[360826692,1747048240294,-123418.59576942,0.00014235,2]
[360826693,1747048240309,-5458.30720099,0.00014235,2]
[360826694,1747048240451,-560.03916625,0.00013478,2]
[360826708,1747048243344,-318.96083375,0.00013478,2]
[360826709,1747048243354,-768.2300973,0.00014235,2]
[360826714,1747048246245,-522.55,0.00014235,2]
[360826715,1747048246374,-7823.79085904,0.00014235,2]
[360826716,1747048246429,-1460.85118962,0.00014235,2]
[360826717,1747048246534,-8931.61001483,0.00014235,2]
[360826719,1747048265796,150.0,0.00013699,7]
[360826720,1747048529683,152.0,0.00019848,30]
[360826721,1747048537804,152.0,0.00014771,8]
[360826722,1747048538101,152.0,0.0001454,7]
[360826723,1747048538408,152.0,0.00014309,6]
[360826724,1747048538726,152.0,0.00014078,5]
[360826731,1747049166880,993.0133227,8e-05,2]
[360826736,1747049361449,974.08,0.00010845,2]
[360826737,1747049373713,1223.43232975,0.00015,5]
[360826746,1747049430299,150.0,0.00013699,7]
[360826752,1747049432420,-831.50232,0.00012758,2]
[360826753,1747049432429,-1200.0,0.00012822,2]
[360826754,1747049432438,-300.0,0.00012822,2]
[360826755,1747049432448,-300.0,0.00012822,2]
[360826756,1747049432457,-500.0,0.00012823,2]
[360826757,1747049432467,-500.0,0.00012823,2]
[360826758,1747049432477,-500.0,0.00012823,2]
[360826759,1747049432486,-500.0,0.00012823,2]
[360826760,1747049432496,-440.35867007,0.00012823,2]
[360826761,1747049432506,-180.53939621,0.00012889,2]
[360826762,1747049432515,-267.97,0.00012917,2]
[360826763,1747049432525,-190.7,0.00012952,2]
[360826764,1747049432534,-1000.0,0.00012956,2]
[360826765,1747049432544,-10670.82,0.00013099,2]
[360826766,1747049432554,-974.08,0.00013109,2]
[360826767,1747049432563,-250.0,0.0001311,2]
[360826768,1747049432573,-207.4,0.00013128,2]
[360826769,1747049432582,-165.75,0.00013155,2]
[360826770,1747049432593,-313.42,0.00013189,2]
[360826771,1747049432602,-319.19,0.00013203,2]
[360826772,1747049432612,-372.22,0.00013282,2]
[360826773,1747049432622,-164.43,0.00013427,2]
[360826774,1747049432635,-152.0,0.00013617,3]
[360826775,1747049432644,-540.97,0.00013699,2]
[360826776,1747049432654,-500.0,0.00013699,2]
[360826777,1747049432663,-200.0,0.00013699,2]
[360826778,1747049432673,-500.0,0.00013699,2]
[360826779,1747049432682,-500.0,0.00013699,2]
[360826780,1747049432692,-619.80804399,0.00013699,2]
[360826781,1747049432702,-250.0,0.00013783,2]
[360826782,1747049432711,-655.81124233,0.00013795,2]
[360826783,1747049432720,-151.0,0.00013811,2]
[360826784,1747049432730,-668.65185757,0.00013811,2]
[360826785,1747049432739,-150.0,0.00013818,2]
[360826786,1747049432748,-1456.0,0.00013819,2]
[360826787,1747049432758,-918.0,0.00013819,2]
[360826788,1747049432767,-552.0,0.00013819,2]
[360826789,1747049432776,-1146.0,0.00013819,2]
[360826790,1747049432786,-5939.0,0.00013819,2]
[360826791,1747049432796,-154.0,0.00013819,2]
[360826792,1747049432805,-6818.0,0.00013819,2]
[360826794,1747049432815,-152.0,0.00013848,4]
[360826796,1747049432824,-700.0,0.00013972,2]
[360826798,1747049432834,-1900.0,0.00013972,2]
[360826799,1747049432843,-457.29,0.00014055,2]
[360826801,1747049432853,-457.29,0.00014055,2]
[360826803,1747049432861,-803.73,0.00014055,2]
[360826805,1747049432871,-456.26,0.00014055,2]
[360826807,1747049432880,-803.73,0.00014055,2]
[360826808,1747049432892,-803.73,0.00014055,2]
[360826810,1747049432902,-803.73,0.00014055,2]
[360826812,1747049432911,-798.66,0.00014055,2]
[360826814,1747049432920,-420.0,0.00014064,2]
[360826815,1747049432929,-420.0,0.00014064,2]
[360826817,1747049432939,-1680.0,0.00014104,2]
[360826820,1747049432948,-676.817,0.00014135,2]
[360826823,1747049432957,-596.06662415,0.00014135,2]
[360826825,1747049432967,-247.627112,0.00014135,2]
[360826827,1747049432976,-4719.0047,0.00014135,2]
[360826830,1747049432985,-167.392,0.00014135,2]
[360826833,1747049432995,-1597.3441,0.00014135,2]
[360826835,1747049433004,-452.54,0.00014192,2]
[360826837,1747049433014,-162.56,0.00014192,2]
[360826839,1747049433023,-352.8,0.00014192,2]
[360826841,1747049433032,-150.69,0.00014192,2]
[360826844,1747049433042,-150.54,0.00014192,2]
[360826847,1747049433051,-300.93,0.00014192,2]
[360826849,1747049433061,-1156.61,0.00014192,2]
[360826852,1747049433071,-452.54,0.00014192,2]
[360826854,1747049433080,-150.12,0.00014192,2]
[360826857,1747049433090,-162.56,0.00014192,2]
[360826859,1747049433099,-352.8,0.00014192,2]
[360826861,1747049433108,-150.12,0.00014192,2]
[360826862,1747049433117,-352.8,0.00014192,2]
[360826864,1747049433127,-1156.61,0.00014192,2]
[360826866,1747049433137,-162.56,0.00014192,2]
[360826867,1747049433146,-452.54,0.00014192,2]
[360826869,1747049433156,-162.56,0.00014192,2]
[360826871,1747049433165,-1156.61,0.00014192,2]
[360826872,1747049433175,-300.18,0.00014192,2]
[360826874,1747049433183,-150.0,0.00014192,2]
[360826875,1747049433193,-352.8,0.00014192,2]
[360826876,1747049433203,-452.54,0.00014192,2]
[360826877,1747049433212,-1156.61,0.00014192,2]
[360826878,1747049433221,-150.12,0.00014192,2]
[360826879,1747049433231,-352.8,0.00014192,2]
[360826881,1747049433241,-162.56,0.00014192,2]
[360826883,1747049433250,-452.54,0.00014192,2]
[360826885,1747049433260,-162.56,0.00014192,2]
[360826887,1747049433269,-903.26,0.00014192,2]
[360826889,1747049433278,-150.12,0.00014192,2]
[360826891,1747049433288,-150.0,0.00014192,2]
[360826893,1747049433298,-352.8,0.00014192,2]
[360826895,1747049433307,-2309.44,0.00014192,2]
[360826897,1747049433316,-150.12,0.00014192,2]
[360826900,1747049433326,-162.56,0.00014192,2]
[360826903,1747049433338,-452.54,0.00014192,2]
[360826905,1747049433347,-452.54,0.00014192,2]
[360826907,1747049433356,-150.12,0.00014192,2]
[360826910,1747049433365,-352.8,0.00014192,2]
[360826913,1747049433375,-162.56,0.00014192,2]
[360826916,1747049433386,-150.0,0.00014192,2]
[360826919,1747049433396,-245.58552711,0.000142,2]
[360826922,1747049433406,-12630.68371133,0.000142,2]
[360826925,1747049433416,-12630.68371116,0.000142,2]
[360826928,1747049433428,-12630.68371116,0.000142,2]
[360826931,1747049433438,-12630.68371116,0.000142,2]
[360826934,1747049433447,-12630.68371116,0.000142,2]
[360826937,1747049433457,-400.0,0.00014234,2]
[360826940,1747049433466,-400.0,0.00014234,2]
[360826943,1747049433476,-4791.66,0.00014234,2]
[360826946,1747049433485,-211.04871462,0.00014234,2]
[360826949,1747049433494,-2607.17,0.00014234,2]
[360826952,1747049433504,-400.0,0.00014234,2]
[360826955,1747049433514,-400.0,0.00014234,2]
[360826958,1747049433523,-400.0,0.00014234,2]
[360826961,1747049433532,-400.0,0.00014234,2]
[360826964,1747049433542,-400.0,0.00014234,2]
[360826967,1747049433551,-400.0,0.00014234,2]
[360826970,1747049433559,-400.0,0.00014234,2]
[360826973,1747049433568,-400.0,0.00014234,2]
[360826976,1747049433577,-409.31365597,0.00014234,2]
[360826979,1747049433587,-457.58,0.00014234,2]
[360826982,1747049433596,-400.0,0.00014234,2]
[360826984,1747049433605,-400.0,0.00014234,2]
[360826986,1747049433616,-400.0,0.00014234,2]
[360826988,1747049433626,-3164.96,0.00014234,2]
[360826990,1747049433638,-400.0,0.00014234,2]
[360826992,1747049433647,-656.14,0.00014234,2]
[360826994,1747049433658,-1156.08,0.00014234,2]
[360826996,1747049433668,-3070.99,0.00014234,2]
[360826998,1747049433677,-400.0,0.00014234,2]
[360826999,1747049433697,-485.14,0.00014234,2]
[360827000,1747049433708,-400.0,0.00014234,2]
[360827001,1747049433718,-464.86,0.00014234,2]
[360827002,1747049433728,-479.31,0.00014234,2]
[360827003,1747049433737,-2043.24,0.00014234,2]
[360827004,1747049433747,-400.0,0.00014234,2]
[360827005,1747049433757,-961.62,0.00014234,2]
[360827006,1747049433767,-536.24,0.00014234,2]
[360827007,1747049433776,-400.0,0.00014234,2]
[360827008,1747049433786,-146548.13,0.00014234,2]
[360827009,1747049433796,-400.0,0.00014234,2]
[360827010,1747049433806,-200.0,0.00014235,2]
[360827011,1747049433816,-400.0,0.00014235,2]
[360827012,1747049433825,-400.0,0.00014235,2]
[360827013,1747049433833,-400.0,0.00014235,2]
[360827014,1747049433842,-400.0,0.00014235,2]
[360827015,1747049433851,-302.69743655,0.00014235,2]
[360827016,1747049433860,-400.0,0.00014235,2]
[360827017,1747049433871,-400.0,0.00014235,2]
[360827018,1747049433879,-400.0,0.00014235,2]
[360827019,1747049433890,-400.0,0.00014235,2]
[360827020,1747049433899,-450.0,0.00014235,2]
[360827021,1747049433909,-223.30330334,0.00014235,2]
[360827022,1747049433918,-465.57,0.00014235,2]
[360827023,1747049433927,-394.67280322,0.00014235,2]
[360827024,1747049433936,-344.52719679,0.00014235,2]
[360827025,1747049433946,-400.0,0.00014235,2]
[360827026,1747049433959,-425.08,0.00014235,2]
[360827027,1747049433969,-489.64,0.00014235,2]
[360827028,1747049433979,-400.0,0.00014235,2]
[360827029,1747049433989,-400.0,0.00014235,2]
[360827030,1747049433999,-400.0,0.00014235,2]
[360827031,1747049434009,-400.0,0.00014235,2]
[360827032,1747049434019,-400.0,0.00014235,2]
[360827033,1747049434028,-400.0,0.00014235,2]
[360827034,1747049434037,-400.0,0.00014235,2]
[360827035,1747049434047,-512.99,0.00014235,2]
[360827036,1747049434058,-400.0,0.00014235,2]
[360827037,1747049434068,-400.0,0.00014235,2]
[360827038,1747049434078,-400.0,0.00014235,2]
[360827039,1747049434087,-400.0,0.00014235,2]
[360827040,1747049434097,-400.0,0.00014235,2]
[360827041,1747049434107,-400.0,0.00014235,2]
[360827042,1747049434116,-490.0,0.00014235,2]
[360827043,1747049434126,-400.0,0.00014235,2]
[360827044,1747049434136,-404.01962278,0.00014235,2]
[360827045,1747049434146,-400.0,0.00014235,2]
[360827046,1747049434156,-400.0,0.00014235,2]
[360827047,1747049434166,-400.0,0.00014235,2]
[360827048,1747049434176,-400.0,0.00014235,2]
[360827049,1747049434186,-400.0,0.00014235,2]
[360827050,1747049434197,-457.92,0.00014235,2]
[360827051,1747049434206,-400.0,0.00014235,2]
[360827052,1747049434216,-400.0,0.00014235,2]
[360827053,1747049434226,-361.7212614,0.00014235,2]
[360827054,1747049434235,-400.0,0.00014235,2]
[360827055,1747049434245,-400.0,0.00014235,2]
[360827056,1747049434255,-400.0,0.00014235,2]
[360827057,1747049434265,-400.0,0.00014235,2]
[360827058,1747049434275,-397.89664881,0.00014235,2]
[360827059,1747049434285,-400.0,0.00014235,2]
[360827060,1747049434295,-400.0,0.00014235,2]
[360827061,1747049434305,-400.0,0.00014235,2]
[360827062,1747049434314,-400.0,0.00014235,2]
[360827063,1747049434324,-500.0,0.00014235,2]
[360827064,1747049434336,-400.0,0.00014235,2]
[360827065,1747049434348,-494.70867889,0.00014235,2]
[360827066,1747049434357,-400.0,0.00014235,2]
[360827067,1747049434367,-400.0,0.00014235,2]
[360827068,1747049434378,-400.0,0.00014235,2]
[360827069,1747049434388,-400.0,0.00014235,2]
[360827070,1747049434398,-400.0,0.00014235,2]
[360827071,1747049434407,-400.0,0.00014235,2]
[360827072,1747049434418,-400.0,0.00014235,2]
[360827073,1747049434430,-400.0,0.00014235,2]
[360827074,1747049434441,-400.0,0.00014235,2]
[360827075,1747049434451,-400.0,0.00014235,2]
[360827076,1747049434461,-400.0,0.00014235,2]
[360827077,1747049434471,-400.0,0.00014235,2]
[360827078,1747049434480,-404.27,0.00014235,2]
[360827079,1747049434490,-400.0,0.00014235,2]
[360827080,1747049434499,-400.0,0.00014235,2]
[360827081,1747049434508,-400.0,0.00014235,2]
[360827082,1747049434517,-400.0,0.00014235,2]
[360827083,1747049434527,-400.0,0.00014235,2]
[360827084,1747049434536,-400.93504187,0.00014235,2]
[360827085,1747049434545,-400.0,0.00014235,2]
[360827086,1747049434784,-400.0,0.00014235,2]
[360827087,1747049434795,-400.0,0.00014235,2]
[360827088,1747049434806,-400.0,0.00014235,2]
[360827089,1747049434816,-431.68,0.00014235,2]
[360827090,1747049434825,-400.0,0.00014235,2]
[360827091,1747049434835,-400.0,0.00014235,2]
[360827092,1747049434845,-400.0,0.00014235,2]
[360827093,1747049434856,-400.0,0.00014235,2]
[360827094,1747049434867,-400.0,0.00014235,2]
[360827095,1747049434878,-194.16658061,0.00014235,2]
[360827096,1747049434890,-272.19,0.00014235,2]
[360827097,1747049434900,-3221.6,0.00014235,2]
[360827098,1747049434910,-500.0,0.00014235,2]
[360827099,1747049434921,-400.0,0.00014235,2]
[360827100,1747049434931,-4699.3,0.00014235,2]
[360827101,1747049434941,-375.38,0.00014235,2]
[360827102,1747049434950,-348.68,0.00014235,2]
[360827103,1747049434959,-1488.85,0.00014235,2]
[360827104,1747049434969,-450.0,0.00014235,2]
[360827105,1747049434978,-505.71,0.00014235,2]
[360827106,1747049434987,-545.88,0.00014235,2]
[360827107,1747049434997,-870.0,0.00014235,2]
[360827108,1747049435006,-8327.07,0.00014235,2]
[360827109,1747049435015,-2661.9,0.00014235,2]
[360827110,1747049435025,-1175.99,0.00014235,2]
[360827111,1747049435034,-19758.95,0.00014235,2]
[360827112,1747049435044,-400.0,0.00014235,2]
[360827113,1747049435054,-400.0,0.00014235,2]
[360827114,1747049435063,-400.0,0.00014235,2]
[360827115,1747049435073,-516.96,0.00014235,2]
[360827116,1747049435082,-400.0,0.00014235,2]
[360827117,1747049435091,-214.14646298,0.00014235,2]
[360827118,1747049435100,-400.0,0.00014235,2]
[360827119,1747049435111,-400.00102525,0.00014235,2]
[360827120,1747049435120,-3031.91668549,0.00014235,2]
[360827121,1747049435138,-298.86,0.00014235,2]
[360827122,1747049435150,-1775.22331451,0.00014235,2]
[360827123,1747049435159,-400.0,0.00014235,2]
[360827124,1747049435168,-301.58531317,0.00014235,2]
[360827125,1747049435209,-98.41468683,0.00014235,2]
[360827126,1747049435218,-470.38,0.00014235,2]
[360827127,1747049435227,-400.0,0.00014235,2]
[360827128,1747049435236,-400.0,0.00014235,2]
[360827129,1747049435246,-400.0,0.00014235,2]
[360827130,1747049435256,-24750.85615736,0.00014235,2]
[360827131,1747049435268,-4213.2780331,0.00014235,2]
[360827132,1747049435279,-9803.69580954,0.00014235,2]
[360827133,1747049435288,-442.12000509,0.00014235,2]
[360827134,1747049435298,-449.48643455,0.00014235,2]
[360827135,1747049435308,-568.39,0.00014235,2]
[360827136,1747049435318,-465.968501,0.00014235,2]
[360827137,1747049435327,-400.0,0.00014235,2]
[360827138,1747049435338,-400.0,0.00014235,2]
[360827139,1747049435350,-400.0,0.00014235,2]
[360827140,1747049435360,-400.0,0.00014235,2]
[360827141,1747049435369,-400.0,0.00014235,2]
[360827142,1747049435378,-400.0,0.00014235,2]
[360827143,1747049435391,-400.0,0.00014235,2]
[360827144,1747049435400,-400.0,0.00014235,2]
[360827145,1747049435409,-400.0,0.00014235,2]
[360827146,1747049435419,-411.44511955,0.00014235,2]
[360827147,1747049435429,-400.0,0.00014235,2]
[360827148,1747049435439,-400.0,0.00014235,2]
[360827149,1747049435447,-400.0,0.00014235,2]
[360827150,1747049435457,-400.0,0.00014235,2]
[360827151,1747049435466,-400.0,0.00014235,2]
[360827152,1747049435475,-400.0,0.00014235,2]
[360827153,1747049435484,-400.0,0.00014235,2]
[360827154,1747049435493,-670.3,0.00014235,2]
[360827155,1747049435502,-400.0,0.00014235,2]
[360827156,1747049435511,-400.0,0.00014235,2]
[360827157,1747049435520,-400.0,0.00014235,2]
[360827158,1747049435529,-915.04,0.00014235,2]
[360827159,1747049435538,-400.0,0.00014235,2]
[360827160,1747049435547,-400.0,0.00014235,2]
[360827161,1747049435556,-460.1,0.00014235,2]
[360827162,1747049435565,-400.0,0.00014235,2]
[360827163,1747049435576,-400.0,0.00014235,2]
[360827164,1747049435585,-151.0,0.00014236,2]
[360827165,1747049435594,-151.0,0.00014236,2]
[360827166,1747049435603,-247.62711193,0.00014244,2]
[360827167,1747049435613,-2619.63393689,0.00014245,2]
[360827168,1747049435624,-3588.90000002,0.00014245,2]
[360827169,1747049435643,-653.51,0.00014245,2]
[360827170,1747049435658,-287.63791001,0.00014245,2]
[360827171,1747049435669,-638.79935703,0.00014245,2]
[360827175,1747049438332,-400.0,0.00014234,2]
[360827176,1747049438343,-400.0,0.00014235,2]
[360827177,1747049438355,-4419.5,0.00014245,2]
[360827178,1747049438366,-422.70250721,0.00014245,2]
[360827179,1747049438375,-245.5855271,0.00014247,2]
[360827180,1747049438385,-160.38203077,0.00014273,2]